fUSD/lending_fUSD_20240419
["ID","MTS","AMOUNT","RATE_DAILY","PERIOD"]
[322965024,1713547909692,-500.0,0.00015068,2]
[322965025,1713547909701,-500.0,0.00015068,2]
[322965026,1713547909711,-300.0,0.00015068,2]
[322965027,1713547909721,-25448.16585625,0.00015192,2]
[322965028,1713547909730,-155.57130007,0.00015246,2]
[322965029,1713547909739,-155.54436796,0.00015246,2]
[322965030,1713547909749,-998.84811,0.0001525,2]
[322965031,1713547909758,-346.07,0.00015293,2]
[322965032,1713547909768,-500.0,0.00015342,2]
[322965033,1713547909777,-500.0,0.00015342,2]
[322965034,1713547909786,-500.0,0.00015342,2]
[322965035,1713547909796,-2110.51,0.00015342,2]
[322965036,1713547909805,-587.44,0.00015342,2]
[322965037,1713547909814,-533.25,0.00015342,2]
[322965038,1713547909825,-885.07,0.00015342,2]
[322965039,1713547909834,-500.0,0.00015342,2]
[322965040,1713547909844,-588.52,0.00015342,2]
[322965041,1713547909853,-500.0,0.00015342,2]
[322965042,1713547909863,-688.61,0.00015342,2]
[322965043,1713547909873,-500.0,0.00015342,2]
[322965044,1713547909882,-500.0,0.00015342,2]
[322965045,1713547909892,-1128.42,0.00015342,2]
[322965046,1713547909904,-1405.03,0.00015342,2]
[322965047,1713547909914,-676.86,0.00015342,2]
[322965048,1713547909923,-507.93,0.00015342,2]
[322965049,1713547909933,-1724.21,0.00015342,2]
[322965050,1713547909943,-500.0,0.00015342,2]
[322965051,1713547909953,-853.04,0.00015342,2]
[322965052,1713547909962,-1185.05,0.00015342,2]
[322965053,1713547909971,-500.0,0.00015342,2]
[322965054,1713547909981,-500.0,0.00015342,2]
[322965055,1713547909990,-868.94,0.00015342,2]
[322965056,1713547909999,-500.0,0.00015342,2]
[322965057,1713547910009,-649.32,0.00015342,2]
[322965058,1713547910019,-500.0,0.00015342,2]
[322965059,1713547910028,-783.57,0.00015342,2]
[322965060,1713547910038,-945.56,0.00015342,2]
[322965061,1713547910048,-2494.46,0.00015342,2]
[322965062,1713547910057,-500.0,0.00015342,2]
[322965063,1713547910067,-636.73,0.00015342,2]
[322965064,1713547910076,-500.0,0.00015342,2]
[322965065,1713547910086,-500.0,0.00015342,2]
[322965066,1713547910096,-500.0,0.00015342,2]
[322965067,1713547910105,-500.0,0.00015342,2]
[322965068,1713547910115,-859.12,0.00015342,2]
[322965069,1713547910124,-569.91511819,0.00015342,2]
[322965070,1713547910134,-690.43,0.00015342,2]
[322965071,1713547910142,-1352.48,0.00015342,2]
[322965072,1713547910154,-720.67,0.00015342,2]
[322965073,1713547910164,-823.18,0.00015342,2]
[322965074,1713547910173,-1996.03,0.00015342,2]
[322965075,1713547910182,-500.0,0.00015342,2]
[322965076,1713547910192,-686.86,0.00015342,2]
[322965077,1713547910201,-1738.27,0.00015342,2]
[322965078,1713547910211,-791.6,0.00015342,2]
[322965079,1713547910220,-500.0,0.00015342,2]
[322965080,1713547910230,-693.35,0.00015342,2]
[322965081,1713547910239,-1572.34,0.00015342,2]
[322965082,1713547910249,-500.0,0.00015342,2]
[322965083,1713547910258,-500.0,0.00015342,2]
[322965084,1713547910268,-500.0,0.00015342,2]
[322965085,1713547910277,-508.11,0.00015342,2]
[322965086,1713547910287,-500.0,0.00015342,2]
[322965087,1713547910296,-818.65,0.00015342,2]
[322965088,1713547910305,-500.0,0.00015342,2]
[322965089,1713547910315,-813.18,0.00015342,2]
[322965090,1713547910335,-500.0,0.00015342,2]
[322965091,1713547910365,-734.58,0.00015342,2]
[322965092,1713547910374,-1007.18,0.00015342,2]
[322965093,1713547910384,-702.98,0.00015342,2]
[322965094,1713547910393,-500.0,0.00015342,2]
[322965095,1713547910404,-732.08,0.00015342,2]
[322965096,1713547910413,-500.0,0.00015342,2]
[322965097,1713547910422,-587.33,0.00015342,2]
[322965098,1713547910431,-500.0,0.00015342,2]
[322965099,1713547910441,-953.8,0.00015342,2]
[322965100,1713547910453,-1109.36,0.00015342,2]
[322965101,1713547910462,-500.0,0.00015342,2]
[322965102,1713547910472,-500.0,0.00015342,2]
[322965103,1713547910483,-500.0,0.00015342,2]
[322965104,1713547910492,-636.51,0.00015342,2]
[322965105,1713547910502,-533.92,0.00015342,2]
[322965106,1713547910512,-616.51,0.00015342,2]
[322965107,1713547910521,-500.0,0.00015342,2]
[322965108,1713547910532,-760.02,0.00015342,2]
[322965109,1713547910541,-500.0,0.00015342,2]
[322965110,1713547910550,-633.07,0.00015342,2]
[322965111,1713547910560,-500.0,0.00015342,2]
[322965112,1713547910569,-799.71,0.00015342,2]
[322965113,1713547910579,-500.0,0.00015342,2]
[322965114,1713547910588,-1421.13,0.00015342,2]
[322965115,1713547910598,-779.79,0.00015342,2]
[322965116,1713547910608,-1371.73,0.00015342,2]
[322965117,1713547910617,-731.74,0.00015342,2]
[322965118,1713547910627,-500.0,0.00015342,2]
[322965119,1713547910636,-1433.68,0.00015342,2]
[322965120,1713547910646,-500.0,0.00015342,2]
[322965121,1713547910657,-500.0,0.00015342,2]
[322965122,1713547910666,-611.22,0.00015342,2]
[322965123,1713547910675,-587.6,0.00015342,2]
[322965124,1713547910684,-802.08,0.00015342,2]
[322965125,1713547910694,-800.51,0.00015342,2]
[322965126,1713547910703,-570.42,0.00015342,2]
[322965127,1713547910713,-545.49,0.00015342,2]
[322965128,1713547910723,-622.53,0.00015342,2]
[322965129,1713547910732,-894.82,0.00015342,2]
[322965130,1713547910742,-665.31,0.00015342,2]
[322965131,1713547910752,-500.0,0.00015342,2]
[322965132,1713547910761,-500.0,0.00015342,2]
[322965133,1713547910771,-500.0,0.00015342,2]
[322965134,1713547910780,-500.0,0.00015342,2]
[322965135,1713547910791,-371.0,0.00015342,2]
[322965136,1713547910800,-1548.19,0.00015342,2]
[322965137,1713547910809,-1402.68,0.00015342,2]
[322965138,1713547910818,-696.4,0.00015342,2]
[322965139,1713547910827,-500.0,0.00015342,2]
[322965140,1713547910837,-500.0,0.00015342,2]
[322965141,1713547910846,-667.78,0.00015342,2]
[322965142,1713547910855,-1817.86,0.00015342,2]
[322965143,1713547911193,-1854.53,0.00015342,2]
[322965144,1713547911203,-1323.45,0.00015342,2]
[322965145,1713547911214,-500.0,0.00015342,2]
[322965146,1713547911223,-500.0,0.00015342,2]
[322965147,1713547911233,-657.97,0.00015342,2]
[322965148,1713547911242,-500.0,0.00015342,2]
[322965149,1713547911251,-500.0,0.00015342,2]
[322965150,1713547911261,-500.0,0.00015342,2]
[322965151,1713547911271,-500.0,0.00015342,2]
[322965152,1713547911280,-500.0,0.00015342,2]
[322965153,1713547911290,-692.84,0.00015342,2]
[322965154,1713547911299,-500.0,0.00015342,2]
[322965155,1713547911309,-500.0,0.00015342,2]
[322965156,1713547911318,-525.97,0.00015342,2]
[322965157,1713547911328,-510.55,0.00015342,2]
[322965158,1713547911337,-500.0,0.00015342,2]
[322965159,1713547911347,-951.28,0.00015342,2]
[322965160,1713547911357,-500.0,0.00015342,2]
[322965161,1713547911366,-500.0,0.00015342,2]
[322965162,1713547911376,-839.77,0.00015342,2]
[322965163,1713547911385,-1185.12,0.00015342,2]
[322965164,1713547911395,-2157.71,0.00015342,2]
[322965165,1713547911405,-500.0,0.00015342,2]
[322965166,1713547911415,-500.0,0.00015342,2]
[322965167,1713547911424,-1409.98,0.00015342,2]
[322965168,1713547911434,-1042.32,0.00015342,2]
[322965169,1713547911448,-1187.74,0.00015342,2]
[322965170,1713547911457,-1175.16,0.00015342,2]
[322965171,1713547911467,-848.63,0.00015342,2]
[322965172,1713547911477,-500.0,0.00015342,2]
[322965173,1713547911487,-1924.82,0.00015342,2]
[322965174,1713547911496,-500.0,0.00015342,2]
[322965175,1713547911505,-500.0,0.00015342,2]
[322965176,1713547911515,-1021.09,0.00015342,2]
[322965177,1713547911525,-500.0,0.00015342,2]
[322965178,1713547911535,-1045.54,0.00015342,2]
[322965179,1713547911544,-500.0,0.00015342,2]
[322965180,1713547911554,-500.0,0.00015342,2]
[322965181,1713547911563,-2634.28,0.00015342,2]
[322965182,1713547911573,-1262.88,0.00015342,2]
[322965183,1713547911582,-1166.31,0.00015342,2]
[322965184,1713547911592,-1332.33,0.00015342,2]
[322965185,1713547911602,-500.0,0.00015342,2]
[322965186,1713547911611,-712.59,0.00015342,2]
[322965187,1713547911621,-536.28,0.00015342,2]
[322965188,1713547911630,-791.73,0.00015342,2]
[322965189,1713547911640,-1210.59,0.00015342,2]
[322965190,1713547911650,-500.0,0.00015342,2]
[322965191,1713547911660,-1285.96,0.00015342,2]
[322965192,1713547911670,-500.0,0.00015342,2]
[322965193,1713547911680,-500.0,0.00015342,2]
[322965194,1713547911689,-499.35585212,0.00015342,2]
[322965195,1713547911699,-500.0,0.00015342,2]
[322965196,1713547911709,-500.0,0.00015342,2]
[322965197,1713547911718,-707.96,0.00015342,2]
[322965198,1713547911729,-930.65,0.00015342,2]
[322965199,1713547911739,-500.0,0.00015342,2]
[322965200,1713547911749,-876.01,0.00015342,2]
[322965201,1713547911759,-1043.23,0.00015342,2]
[322965202,1713547911768,-500.0,0.00015342,2]
[322965203,1713547911778,-500.0,0.00015342,2]
[322965204,1713547911787,-500.0,0.00015342,2]
[322965205,1713547911797,-1932.47,0.00015342,2]
[322965206,1713547911808,-500.0,0.00015342,2]
[322965207,1713547911818,-943.25,0.00015342,2]
[322965208,1713547911829,-591.53,0.00015342,2]
[322965209,1713547911839,-500.0,0.00015342,2]
[322965210,1713547911849,-500.0,0.00015342,2]
[322965211,1713547911858,-508.04,0.00015342,2]
[322965212,1713547911868,-500.0,0.00015342,2]
[322965213,1713547911878,-667.44,0.00015342,2]
[322965214,1713547911888,-500.0,0.00015342,2]
[322965215,1713547911897,-1005.79,0.00015342,2]
[322965216,1713547911909,-1151.58,0.00015342,2]
[322965217,1713547911919,-666.71,0.00015342,2]
[322965218,1713547911928,-500.0,0.00015342,2]
[322965219,1713547911938,-844.29,0.00015342,2]
[322965220,1713547911947,-859.59,0.00015342,2]
[322965221,1713547911956,-827.06,0.00015342,2]
[322965222,1713547911965,-909.02,0.00015342,2]
[322965223,1713547911975,-500.0,0.00015342,2]
[322965224,1713547911984,-500.0,0.00015342,2]
[322965225,1713547911994,-3128.94,0.00015342,2]
[322965226,1713547912003,-1084.83,0.00015342,2]
[322965227,1713547912013,-849.87,0.00015342,2]
[322965228,1713547912023,-165.04,0.00015342,2]
[322965229,1713547912032,-500.0,0.00015342,2]
[322965230,1713547912042,-500.0,0.00015342,2]
[322965231,1713547912051,-962.42,0.00015342,2]
[322965232,1713547912060,-500.0,0.00015342,2]
[322965233,1713547912069,-500.0,0.00015342,2]
[322965234,1713547912079,-500.0,0.00015342,2]
[322965235,1713547912089,-500.0,0.00015342,2]
[322965236,1713547912099,-500.0,0.00015342,2]
[322965237,1713547912108,-1106.42,0.00015342,2]
[322965238,1713547912118,-638.57625059,0.00015342,2]
[322965239,1713547912127,-710.41,0.00015342,2]
[322965240,1713547912137,-860.99,0.00015342,2]
[322965241,1713547912147,-533.1,0.00015342,2]
[322965242,1713547912158,-1532.66,0.00015342,2]
[322965243,1713547912169,-1058.74,0.00015342,2]
[322965244,1713547912178,-500.0,0.00015342,2]
[322965245,1713547912188,-500.0,0.00015342,2]
[322965246,1713547912197,-1991.95,0.00015342,2]
[322965247,1713547912207,-917.22,0.00015342,2]
[322965248,1713547912217,-1677.63,0.00015342,2]
[322965249,1713547912227,-500.0,0.00015342,2]
[322965250,1713547912236,-1495.03,0.00015342,2]
[322965251,1713547912246,-500.0,0.00015342,2]
[322965252,1713547912256,-481.78502231,0.00015342,2]
[322965253,1713547912266,-1437.08,0.00015342,2]
[322965254,1713547912275,-1221.32,0.00015342,2]
[322965255,1713547912285,-500.0,0.00015342,2]
[322965256,1713547912295,-894.68,0.00015342,2]
[322965257,1713547912305,-500.0,0.00015342,2]
[322965258,1713547912315,-500.0,0.00015342,2]
[322965259,1713547912324,-500.0,0.00015342,2]
[322965260,1713547912334,-1958.47,0.00015342,2]
[322965261,1713547912344,-2134.27,0.00015342,2]
[322965262,1713547912354,-1468.38,0.00015342,2]
[322965263,1713547912365,-1385.58,0.00015342,2]
[322965264,1713547912374,-1055.95,0.00015342,2]
[322965265,1713547912384,-500.0,0.00015342,2]
[322965266,1713547912393,-500.0,0.00015342,2]
[322965267,1713547912404,-850.7,0.00015342,2]
[322965268,1713547912413,-500.0,0.00015342,2]
[322965269,1713547912423,-500.0,0.00015342,2]
[322965270,1713547912432,-1613.06,0.00015342,2]
[322965271,1713547912442,-1869.43,0.00015342,2]
[322965272,1713547912455,-160.94180928,0.00015342,2]
[322965273,1713547912464,-1137.3,0.00015342,2]
[322965274,1713547912474,-1531.48,0.00015342,2]
[322965275,1713547912483,-729.51,0.00015342,2]
[322965276,1713547912494,-867.54,0.00015342,2]
[322965277,1713547912503,-500.0,0.00015342,2]
[322965278,1713547912513,-591.76,0.00015342,2]
[322965279,1713547912523,-500.0,0.00015342,2]
[322965280,1713547912534,-918.65,0.00015342,2]
[322965281,1713547912543,-927.53,0.00015342,2]
[322965282,1713547912553,-500.0,0.00015342,2]
[322965283,1713547912562,-500.0,0.00015342,2]
[322965284,1713547912571,-2570.17,0.00015342,2]
[322965285,1713547912581,-500.0,0.00015342,2]
[322965286,1713547912591,-1851.41,0.00015342,2]
[322965287,1713547912601,-500.0,0.00015342,2]
[322965288,1713547912610,-500.0,0.00015342,2]
[322965289,1713547912619,-500.0,0.00015342,2]
[322965290,1713547912628,-717.49,0.00015342,2]
[322965291,1713547912637,-1190.81,0.00015342,2]
[322965292,1713547912646,-960.45,0.00015342,2]
[322965293,1713547912657,-500.0,0.00015342,2]
[322965294,1713547912666,-549.94,0.00015342,2]
[322965295,1713547912676,-500.0,0.00015342,2]
[322965296,1713547912685,-1956.81,0.00015342,2]
[322965297,1713547912694,-500.0,0.00015342,2]
[322965298,1713547912704,-765.42,0.00015342,2]
[322965299,1713547912714,-739.43,0.00015342,2]
[322965300,1713547912723,-1398.96,0.00015342,2]
[322965301,1713547912732,-500.0,0.00015342,2]
[322965302,1713547912742,-500.0,0.00015342,2]
[322965303,1713547912752,-2103.77,0.00015342,2]
[322965304,1713547912762,-1685.66,0.00015342,2]
[322965305,1713547912771,-500.0,0.00015342,2]
[322965306,1713547912781,-1256.68,0.00015342,2]
[322965307,1713547912790,-500.0,0.00015342,2]
[322965308,1713547912800,-1117.43,0.00015342,2]
[322965309,1713547912809,-1052.85,0.00015342,2]
[322965310,1713547912819,-1921.77,0.00015342,2]
[322965311,1713547912829,-772.1,0.00015342,2]
[322965312,1713547912839,-500.0,0.00015342,2]
[322965313,1713547912848,-500.0,0.00015342,2]
[322965314,1713547912857,-631.7,0.00015342,2]
[322965315,1713547912866,-2964.49,0.00015342,2]
[322965316,1713547912875,-1253.8,0.00015342,2]
[322965317,1713547912885,-1378.32,0.00015342,2]
[322965318,1713547912894,-807.54,0.00015342,2]
[322965319,1713547912904,-1081.19,0.00015342,2]
[322965320,1713547912914,-815.96,0.00015342,2]
[322965321,1713547912923,-1049.59,0.00015342,2]
[322965322,1713547912933,-1845.52,0.00015342,2]
[322965323,1713547912942,-741.66,0.00015342,2]
[322965324,1713547912952,-2620.88,0.00015342,2]
[322965325,1713547912961,-1780.73,0.00015342,2]
[322965326,1713547912971,-2723.48,0.00015342,2]
[322965327,1713547912980,-1417.69,0.00015342,2]
[322965328,1713547912989,-1358.87,0.00015342,2]
[322965329,1713547912999,-552.72,0.00015342,2]
[322965330,1713547913008,-500.0,0.00015342,2]
[322965331,1713547913017,-735.73,0.00015342,2]
[322965332,1713547913027,-500.0,0.00015342,2]
[322965333,1713547913036,-1288.14,0.00015342,2]
[322965334,1713547913046,-500.0,0.00015342,2]
[322965335,1713547913055,-500.0,0.00015342,2]
[322965336,1713547913064,-504.98,0.00015342,2]
[322965337,1713547913074,-1067.84,0.00015342,2]
[322965338,1713547913083,-1255.87,0.00015342,2]
[322965339,1713547913093,-500.0,0.00015342,2]
[322965340,1713547913103,-500.0,0.00015342,2]
[322965341,1713547913112,-1672.8,0.00015342,2]
[322965342,1713547913122,-1584.31,0.00015342,2]
[322965343,1713547913131,-500.0,0.00015342,2]
[322965344,1713547913140,-536.0888706,0.00015342,2]
[322965345,1713547913149,-1836.33,0.00015342,2]
[322965346,1713547913163,-537.61,0.00015342,2]
[322965347,1713547913172,-709.72,0.00015342,2]
[322965348,1713547913181,-500.0,0.00015342,2]
[322965349,1713547913190,-500.0,0.00015342,2]
[322965350,1713547913199,-1262.36,0.00015342,2]
[322965351,1713547913207,-500.0,0.00015342,2]
[322965352,1713547913216,-1342.14,0.00015342,2]
[322965353,1713547913226,-907.63,0.00015342,2]
[322965354,1713547913235,-2176.51,0.00015342,2]
[322965355,1713547913244,-500.0,0.00015342,2]
[322965356,1713547913254,-1204.36,0.00015342,2]
[322965357,1713547913264,-2283.41,0.00015342,2]
[322965358,1713547913273,-567.88,0.00015342,2]
[322965359,1713547913283,-984.59,0.00015342,2]
[322965360,1713547913293,-669.36,0.00015342,2]
[322965361,1713547913302,-782.81,0.00015342,2]
[322965362,1713547913312,-533.61,0.00015342,2]
[322965363,1713547913321,-1288.58,0.00015342,2]
[322965364,1713547913330,-500.0,0.00015342,2]
[322965365,1713547913340,-749.22,0.00015342,2]
[322965366,1713547913350,-500.0,0.00015342,2]
[322965367,1713547913359,-1347.98,0.00015342,2]
[322965368,1713547913369,-500.0,0.00015342,2]
[322965369,1713547913378,-1496.13,0.00015342,2]
[322965370,1713547913387,-776.56,0.00015342,2]
[322965371,1713547913396,-1096.01,0.00015342,2]
[322965372,1713547913407,-500.0,0.00015342,2]
[322965373,1713547913417,-500.0,0.00015342,2]
[322965374,1713547913426,-969.2,0.00015342,2]
[322965375,1713547913436,-1621.12,0.00015342,2]
[322965376,1713547913450,-1194.99,0.00015342,2]
[322965377,1713547913460,-1157.29,0.00015342,2]
[322965378,1713547913469,-573.44,0.00015342,2]
[322965379,1713547913479,-1092.41,0.00015342,2]
[322965380,1713547913489,-500.0,0.00015342,2]
[322965381,1713547913499,-984.48,0.00015342,2]
[322965382,1713547913508,-1606.09,0.00015342,2]
[322965383,1713547913518,-500.0,0.00015342,2]
[322965384,1713547913532,-509.93,0.00015342,2]
[322965385,1713547913541,-2406.42,0.00015342,2]
[322965386,1713547913554,-500.0,0.00015342,2]
[322965387,1713547913563,-2066.12,0.00015342,2]
[322965388,1713547913572,-500.0,0.00015342,2]
[322965389,1713547913581,-500.0,0.00015342,2]
[322965390,1713547913591,-1808.05,0.00015342,2]
[322965391,1713547913600,-500.0,0.00015342,2]
[322965392,1713547913616,-500.0,0.00015342,2]
[322965393,1713547913627,-1231.43,0.00015342,2]
[322965394,1713547913637,-1260.52,0.00015342,2]
[322965395,1713547913648,-1235.4,0.00015342,2]
[322965396,1713547913660,-531.33,0.00015342,2]
[322965397,1713547913669,-599.56,0.00015342,2]
[322965398,1713547913678,-500.0,0.00015342,2]
[322965399,1713547913687,-1097.83,0.00015342,2]
[322965400,1713547913698,-226.00260968,0.00015342,2]
[322965401,1713547913708,-2567.39,0.00015342,2]
[322965402,1713547913718,-1521.18,0.00015342,2]
[322965403,1713547913728,-737.68,0.00015342,2]
[322965404,1713547913738,-500.0,0.00015342,2]
[322965405,1713547913749,-500.0,0.00015342,2]
[322965406,1713547913760,-1429.5,0.00015342,2]
[322965407,1713547913769,-500.0,0.00015342,2]
[322965408,1713547913778,-500.0,0.00015342,2]
[322965409,1713547913788,-500.0,0.00015342,2]
[322965410,1713547913799,-609.78,0.00015342,2]
[322965411,1713547913809,-1147.96,0.00015342,2]
[322965412,1713547913818,-946.74,0.00015342,2]
[322965413,1713547913827,-917.99,0.00015342,2]
[322965414,1713547913838,-590.73,0.00015342,2]
[322965415,1713547913848,-1353.39,0.00015342,2]
[322965416,1713547913859,-645.77,0.00015342,2]
[322965417,1713547913868,-500.0,0.00015342,2]
[322965418,1713547913878,-991.95,0.00015342,2]
[322965419,1713547913887,-1531.51,0.00015342,2]
[322965420,1713547913898,-500.0,0.00015342,2]
[322965421,1713547913910,-614.33,0.00015342,2]
[322965422,1713547913922,-500.0,0.00015342,2]
[322965423,1713547913935,-547.32,0.00015342,2]
[322965424,1713547913946,-1659.79,0.00015342,2]
[322965425,1713547913957,-1683.91,0.00015342,2]
[322965426,1713547913968,-727.72,0.00015342,2]
[322965427,1713547913977,-554.76,0.00015342,2]
[322965428,1713547913986,-2633.24,0.00015342,2]
[322965429,1713547913996,-541.98,0.00015342,2]
[322965430,1713547914006,-1541.82,0.00015342,2]
[322965431,1713547914015,-1982.78,0.00015342,2]
[322965432,1713547914024,-500.0,0.00015342,2]
[322965433,1713547914034,-1879.91,0.00015342,2]
[322965434,1713547914043,-2067.07,0.00015342,2]
[322965435,1713547914052,-500.0,0.00015342,2]
[322965436,1713547914063,-925.07,0.00015342,2]
[322965437,1713547914073,-2089.21,0.00015342,2]
[322965438,1713547914083,-2571.24,0.00015342,2]
[322965439,1713547914094,-500.0,0.00015342,2]
[322965440,1713547914104,-920.34,0.00015342,2]
[322965441,1713547914113,-733.19,0.00015342,2]
[322965442,1713547914123,-738.14,0.00015342,2]
[322965443,1713547914133,-1286.35,0.00015342,2]
[322965444,1713547914142,-648.77,0.00015342,2]
[322965445,1713547914151,-1793.39,0.00015342,2]
[322965446,1713547914162,-1073.53,0.00015342,2]
[322965447,1713547914171,-501.84,0.00015342,2]
[322965448,1713547914180,-620.08,0.00015342,2]
[322965449,1713547914189,-582.39,0.00015342,2]
[322965450,1713547914198,-500.0,0.00015342,2]
[322965451,1713547914210,-500.0,0.00015342,2]
[322965452,1713547914219,-500.0,0.00015342,2]
[322965453,1713547914228,-500.0,0.00015342,2]
[322965454,1713547914236,-826.91,0.00015342,2]
[322965455,1713547914245,-500.0,0.00015342,2]
[322965456,1713547914254,-3814.46,0.00015342,2]
[322965457,1713547914264,-520.61,0.00015342,2]
[322965458,1713547914273,-1444.61,0.00015342,2]
[322965459,1713547914283,-500.0,0.00015342,2]
[322965460,1713547914293,-545.09,0.00015342,2]
[322965461,1713547914302,-1239.67,0.00015342,2]
[322965462,1713547914316,-500.0,0.00015342,2]
[322965463,1713547914336,-500.0,0.00015342,2]
[322965464,1713547914348,-500.0,0.00015342,2]
[322965465,1713547914361,-500.0,0.00015342,2]
[322965466,1713547914374,-778.47,0.00015342,2]
[322965467,1713547914389,-717.84,0.00015342,2]
[322965468,1713547914406,-562.43,0.00015342,2]
[322965469,1713547914419,-500.0,0.00015342,2]
[322965470,1713547914430,-534.84,0.00015342,2]
[322965471,1713547914446,-500.0,0.00015342,2]
[322965472,1713547914458,-1476.82,0.00015342,2]
[322965473,1713547914472,-1833.64,0.00015342,2]
[322965474,1713547914485,-931.07,0.00015342,2]
[322965475,1713547914499,-1543.13,0.00015342,2]
[322965476,1713547914510,-514.51,0.00015342,2]
[322965477,1713547914526,-500.0,0.00015342,2]
[322965478,1713547914540,-924.5,0.00015342,2]
[322965479,1713547914553,-986.48,0.00015342,2]
[322965480,1713547914567,-3429.89,0.00015342,2]
[322965481,1713547914579,-500.0,0.00015342,2]
[322965482,1713547914592,-502.53,0.00015342,2]
[322965483,1713547914605,-500.0,0.00015342,2]
[322965484,1713547914621,-1384.12,0.00015342,2]
[322965485,1713547914636,-1529.43,0.00015342,2]
[322965486,1713547914650,-713.45,0.00015342,2]
[322965487,1713547914663,-527.25,0.00015342,2]
[322965488,1713547914674,-500.0,0.00015342,2]
[322965489,1713547914686,-1481.71,0.00015342,2]
[322965490,1713547914700,-1823.94,0.00015342,2]
[322965491,1713547914714,-679.73,0.00015342,2]
[322965492,1713547914729,-500.0,0.00015342,2]
[322965493,1713547914740,-1763.78,0.00015342,2]
[322965494,1713547914751,-830.36,0.00015342,2]
[322965495,1713547914767,-500.0,0.00015342,2]
[322965496,1713547914779,-500.0,0.00015342,2]
[322965497,1713547914791,-4120.99,0.00015342,2]
[322965498,1713547914805,-500.0,0.00015342,2]
[322965499,1713547914817,-1450.48,0.00015342,2]
[322965500,1713547914829,-500.0,0.00015342,2]
[322965501,1713547914842,-500.0,0.00015342,2]
[322965502,1713547914855,-1589.95,0.00015342,2]
[322965503,1713547914867,-1251.26,0.00015342,2]
[322965504,1713547914880,-689.87,0.00015342,2]
[322965505,1713547914893,-655.83,0.00015342,2]
[322965506,1713547914906,-1698.86,0.00015342,2]
[322965507,1713547914918,-500.0,0.00015342,2]
[322965508,1713547914930,-1066.59,0.00015342,2]
[322965509,1713547914942,-3508.76,0.00015342,2]
[322965510,1713547914954,-1108.37,0.00015342,2]
[322965511,1713547914967,-1759.06,0.00015342,2]
[322965512,1713547914979,-671.87,0.00015342,2]
[322965513,1713547914990,-900.9,0.00015342,2]
[322965514,1713547915003,-919.21,0.00015342,2]
[322965515,1713547915015,-712.97,0.00015342,2]
[322965516,1713547915028,-710.37,0.00015342,2]
[322965517,1713547915039,-1505.91,0.00015342,2]
[322965518,1713547915052,-500.0,0.00015342,2]
[322965519,1713547915064,-500.0,0.00015342,2]
[322965520,1713547915076,-500.0,0.00015342,2]
[322965521,1713547915089,-2296.24,0.00015342,2]
[322965522,1713547915101,-824.87,0.00015342,2]
[322965523,1713547915114,-506.9,0.00015342,2]